Cogmind - Beta 13 @@@ ROGUE MODE // 2024.05.27 @ 09:12:58 Player: Enathri Result: Destroyed by G-47 Trooper with Particle Gun Performance ------------- Evolutions (2) 1000 Regions Visited (4) 800 Robots Destroyed (10) 50 Value Destroyed (250) 250 Prototype IDs (2) 40 Alien Tech Used (0) 0 Bonus (40) 40 TOTAL SCORE: 2180 Bonus ------- Follower Combat Kills 40 Cogmind --------- Core Integrity 0/550 Matter 262/300 Energy 100/100 System Corruption 0% Temperature Cool (9) Movement Core (200) Ox3 Location -8/Materials Parts ------- > --- POWER (2) -------- (None) > --- PROPULSION (2) --- (None) > --- UTILITY (4) ------ Medium Storage Unit > --- WEAPON (3) ------- (None) > --- INVENTORY (10) --- VTOL Module Medium Matter Pod (68) Structural Scanner Target Analyzer Improved Datajack Peak State ------------ > --- POWER ------------ Ion Engine Nuclear Core > --- PROPULSION ------- Wheel VTOL Module > --- UTILITY ---------- Medium Storage Unit Structural Scanner Experimental Sensor Array Light Armor Plating > --- WEAPON ----------- Improved EM Shotgun Light Assault Rifle Grenade Launcher > --- INVENTORY -------- Light Treads Aluminum Leg Wheel Medium Matter Pod Structural Scanner Target Analyzer EM Pulse Gun Improved Datajack [Rating: 25] Favorites ----------- Power Light Ion Engine Engine Light Ion Engine Power Core Nuclear Core Propulsion Wheel Treads Light Treads Leg Aluminum Leg Wheel Wheel Flight Unit VTOL Module Utility Medium Storage Unit Device Structural Scanner Storage Medium Storage Unit Protection Light Armor Plating Weapon Light Assault Rifle Energy Gun Improved EM Shotgun Ballistic Gun Light Assault Rifle Launcher Grenade Launcher Special Melee Weapon Improved Datajack Build | -11 -10 -9 -9 -8 ------- Run | Yrd Mat Mat Min Mat Slots Evolved 4 | . . 2 . 2 Power 1 | . . . . 1 Propulsion . | . . . . . Utility 2 | . . 2 . . Weapon 1 | . . . . 1 Parts Attached 34 | 7 6 5 8 8 Power 5 | 2 1 . 1 1 Engine 4 | 2 1 . 1 . Core 1 | . . . . 1 Reactor . | . . . . . Propulsion 13 | 3 1 1 4 4 Treads 1 | . . . 1 . Leg 1 | . . . 1 . Wheel 9 | 3 1 1 2 2 Hover . | . . . . . Flight 2 | . . . . 2 Utility 7 | . 1 4 2 . Device 3 | . . 2 1 . Storage 3 | . 1 2 . . Processor . | . . . . . Hackware . | . . . . . Protection 1 | . . . 1 . Artifact . | . . . . . Weapon 9 | 2 3 . 1 3 Energy Gun 3 | . 2 . . 1 Energy Cannon . | . . . . . Ballistic Gun 4 | 2 1 . . 1 Ballistic Cannon . | . . . . . Launcher 1 | . . . 1 . Special Weapon . | . . . . . Impact Weapon . | . . . . . Slashing Weapon . | . . . . . Piercing Weapon . | . . . . . Special Melee Weapon 1 | . . . . 1 Unidentified Prototypes 2 | . 1 . 1 . Parts Lost 12 | . . 1 . 11 Power 3 | . . 1 . 2 Propulsion 2 | . . . . 2 Utility 3 | . . . . 3 Weapon 4 | . . . . 4 Highest Loss Streak 11 | . . 1 . 11 To Critical Strikes . | . . . . . Average Slot Usage (%) 78 | . 73 73 91 69 Engine 7 | . 13 7 4 6 Wheel 19 | . 27 22 17 12 Device 9 | . . 10 12 12 Storage 13 | . 5 11 25 9 Protection 3 | . . . 6 6 Energy Gun 13 | . 1 22 21 7 Ballistic Gun 7 | . 25 . . 6 Launcher 1 | . . . . 6 Naked Turns . | . . . . . Heaviest Build 34 | 6 19 21 27 34 Greatest Support 20 | 20 20 20 20 20 Greatest Overweight (x) 11 | . . 1 6 11 Average Overweight (x) . | . . . 1 1 Largest Inventory Capacity 10 | 5 10 10 10 10 Average Capacity 6 | 5 6 10 10 10 Most Carried 10 | 4 6 8 9 10 Average Carried 4 | 3 3 6 6 6 Final Capacity 10 | 5 10 10 10 10 Final Carried 7 | 4 4 7 6 5 Class Distribution -------------------- 93% | Mutant 6% | Skirmisher Dominant Class ---------------- Mutant | -10/Materials Mutant | -9/Materials Mutant | -9/Mines Mutant | -8/Materials Resources | -11 -10 -9 -9 -8 ----------- Run | Yrd Mat Mat Min Mat Matter Collected 624 | 310 46 80 158 30 Remotely . | . . . . . Salvage Created 323 | 58 46 96 60 63 Parts 21 | 3 6 6 3 3 Haulers Intercepted . | . . . . . Recyclers Shooed . | . . . . . Parts Field Recycled . | . . . . . Retrieved Matter . | . . . . . Parts Self-Destructed . | . . . . . Prevented . | . . . . . Kills | -11 -10 -9 -9 -8 ------- Run | Yrd Mat Mat Min Mat Combat Hostiles Destroyed 8 | 1 3 2 1 1 Guns 7 | 1 3 2 1 . AOE 1 | . . . . 1 Classes Destroyed 5 | 2 1 . 1 1 Worker 1 | 1 . . . . Watcher 1 | . . . . 1 Swarmer 3 | . 3 . . . Grunt 4 | 1 . 2 . 1 Sentry 1 | . . . 1 . Best Kill Streak 3 | 1 3 2 1 2 Combat Bots Only 3 | 1 3 2 1 1 Max Kills in Single Turn 1 | 1 1 1 1 1 Gunslinging . | . . . . . Exploded 1 | . . . . 1 Melee . | . . . . . Uniques/NPCs Destroyed . | . . . . . Combat | -11 -10 -9 -9 -8 -------- Run | Yrd Mat Mat Min Mat Hostile Shots Fired 179 | 7 30 10 10 122 Missed 59 | 4 10 2 3 40 Damage Taken 1689 | 33 185 96 101 1274 Core 696 | 12 34 35 55 560 Absorbed by Shields . | . . . . . Core Remaining (%) 84 | 95 81 . 77 . Volleys Fired 29 | 10 9 4 3 3 Largest 3 | 2 2 2 2 3 Hottest 95 | 40 40 90 90 95 Shots Fired 61 | 20 18 8 6 9 Gun 58 | 20 18 8 6 6 Cannon . | . . . . . Launcher 3 | . . . . 3 Special . | . . . . . Kinetic 41 | 20 18 . . 3 Thermal . | . . . . . Explosive 3 | . . . . 3 Electromagnetic 17 | . . 8 6 3 Robot Hit Streak 10 | 4 3 7 6 10 Robot Miss Streak 5 | 3 2 5 1 1 Penetration Max . | . . . . . Secondary Targets 3 | . 2 . 1 . Max Gunslinging Chain 1 | . 1 . 1 . Shots Hit Robots 39 | 11 9 6 6 7 Core Hits 22 | 5 5 4 3 5 Critical Kills . | . . . . . Critical Parts Destroyed 1 | . 1 . . . Critical Strikes 1 | . 1 . . . Destroy 1 | . 1 . . . Melee Attacks . | . . . . . Impact . | . . . . . Slashing . | . . . . . Piercing . | . . . . . Sneak Attacks . | . . . . . Combat Hostiles . | . . . . . Follow-up Attacks . | . . . . . Damage Inflicted 663 | 100 113 92 94 264 Guns 482 | 100 113 92 94 83 Cannons . | . . . . . Explosions 181 | . . . . 181 Melee . | . . . . . Ramming . | . . . . . Kinetic 229 | 100 113 . . 16 Thermal . | . . . . . Explosive 181 | . . . . 181 Electromagnetic 253 | . . 92 94 67 Impact . | . . . . . Slashing . | . . . . . Piercing . | . . . . . Highest Corruption . | . . . . . Average Corruption . | . . . . . Corruption Purged . | . . . . . Corruption Blocked . | . . . . . Overload Shots . | . . . . . Overflow Damage . | . . . . . Projectiles . | . . . . . Explosions . | . . . . . Melee . | . . . . . Knockbacks . | . . . . . Impact . | . . . . . Kinetic . | . . . . . Secondary . | . . . . . Self-Inflicted Damage 21 | . . . . 21 Shots 2 | . . . . 2 Rammed . | . . . . . Targets Rammed . | . . . . . Kicked . | . . . . . Crushed . | . . . . . Highest Temperature 67 | . . 54 36 67 Average Temperature 26 | . . 28 16 30 Received Heat Transfer 714 | 18 42 51 27 576 Siege Activations . | . . . . . Robots Corrupted . | . . . . . Combat Hostiles . | . . . . . Parts Fried 2 | . . . 1 1 Impact Corruptions . | . . . . . Robots Melted . | . . . . . Combat Hostiles . | . . . . . Parts Melted . | . . . . . Heat Transferred . | . . . . . Parts Sabotaged . | . . . . . Parts Stolen . | . . . . . Parts Stripped . | . . . . . Power Chain Reactions . | . . . . . Alert | -11 -10 -9 -9 -8 ------- Run | Yrd Mat Mat Min Mat Peak Influence 224 | 25 190 224 168 113 Initial 87 | . . 79 87 57 Average 46 | 4 75 131 128 65 Maximum Alert Level 1 | . . 1 . . Low Security (%) 99 | 100 100 95 100 100 Level 1 . | . . 4 . . Level 2 . | . . . . . Level 3 . | . . . . . Level 4 . | . . . . . Level 5 . | . . . . . High Security . | . . . . . Max Security . | . . . . . Squads Dispatched 3 | . 2 1 . . Investigation 2 | . 2 . . . Extermination . | . . . . . Reinforcement 1 | . . 1 . . Assault . | . . . . . Garrison . | . . . . . Intercept . | . . . . . Searches Triggered . | . . . . . Construction Impeded . | . . . . . Haulers Reinforced . | . . . . . Active Scanning Responses . | . . . . . Cargo Convoy Interrupts . | . . . . . Stealth | -11 -10 -9 -9 -8 --------- Run | Yrd Mat Mat Min Mat Distress Signals 4 | . 2 . . 2 Communications Jammed . | . . . . . Distress Signals . | . . . . . Times Spotted 37 | 1 15 9 2 10 Peak Tracking Total 8 | 1 8 4 2 6 Tactical Retreats 6 | . 2 3 . 1 Traps | -11 -10 -9 -9 -8 ------- Run | Yrd Mat Mat Min Mat Traps Triggered 1 | . 1 . . . Indirectly . | . . . . . Trap Hack Attempts . | . . . . . Triggered . | . . . . . Disarmed . | . . . . . Reprogrammed . | . . . . . Reused . | . . . . . Traps Extracted . | . . . . . Installed . | . . . . . Triggered . | . . . . . Machines | -11 -10 -9 -9 -8 ---------- Run | Yrd Mat Mat Min Mat Machines Disabled . | . . . . . Max in Single Turn . | . . . . . Machines Repaired . | . . . . . Machines Dismantled . | . . . . . Machines Sabotaged . | . . . . . Overloaded Fab Kills . | . . . . . Hacking | -11 -10 -9 -9 -8 --------- Run | Yrd Mat Mat Min Mat Machines Accessed 1 | . 1 . . . Terminals . | . . . . . Fabricators . | . . . . . Repair Stations . | . . . . . Recycling Units 1 | . 1 . . . Scanalyzers . | . . . . . Garrison Access . | . . . . . Total Hacks 1 | . 1 . . . Successful 1 | . 1 . . . Failed . | . . . . . Catastrophic . | . . . . . Database Lockouts . | . . . . . Manual 2 | . 2 . . . Terminals . | . . . . . Fabricators . | . . . . . Repair Stations . | . . . . . Recycling Units 1 | . 1 . . . Scanalyzers . | . . . . . Garrison Access . | . . . . . Terminal Hacks . | . . . . . Fabricator Hacks . | . . . . . Repair Station Hacks . | . . . . . Recycling Unit Hacks 1 | . 1 . . . Retrieve Components 1 | . 1 . . . Scanalyzer . | . . . . . Garrison Access Hacks . | . . . . . Unauthorized Hacks . | . . . . . Terminals . | . . . . . Fabricators . | . . . . . Repair Stations . | . . . . . Recycling Units . | . . . . . Scanalyzers . | . . . . . Garrison Access . | . . . . . Data Cores Recovered . | . . . . . Used . | . . . . . Hacking Detections 1 | . 1 . . . Full Trace Events 1 | . 1 . . . Feedback Events . | . . . . . Feedback Blocked . | . . . . . Robot Schematics Acquired . | . . . . . Robots Built . | . . . . . Authchips . | . . . . . Time . | . . . . . Total Robot Build Rating . | . . . . . Part Schematics Acquired . | . . . . . Parts Built . | . . . . . Authchips . | . . . . . Time . | . . . . . Total Part Build Rating . | . . . . . Parts Repaired . | . . . . . Time . | . . . . . Parts Recycled . | . . . . . Recycled Matter . | . . . . . Retrieved Matter . | . . . . . Retrieved Components . | . . . . . Parts Scanalyzed . | . . . . . Part Schematics Acquired . | . . . . . Parts Damaged . | . . . . . Bothacking | -11 -10 -9 -9 -8 ------------ Run | Yrd Mat Mat Min Mat Used RIF Installer . | . . . . . Robots Hacked . | . . . . . Non-combat . | . . . . . Combat . | . . . . . Robot Hacks Applied . | . . . . . Relay Couplers Released . | . . . . . Fabnet Peak Effective % . | . . . . . Robots Rewired . | . . . . . Allies Hacked . | . . . . . Hacks Repelled . | . . . . . Allies | -11 -10 -9 -9 -8 -------- Run | Yrd Mat Mat Min Mat Total Allies 2 | . . . 2 . Largest Group 2 | . . . 2 . Highest-Rated Group 47 | . . . 47 . Highest-Rated Ally 31 | . . . 31 . Total Orders . | . . . . . Ally Attacks 15 | . . . 15 . Total Damage 193 | . . . 193 . Kills 2 | . . . 2 . Allies Corrupted . | . . . . . Allies Melted . | . . . . . Intel | -11 -10 -9 -9 -8 ------- Run | Yrd Mat Mat Min Mat Robot Analysis Total . | . . . . . Derelict Logs Recovered 1 | . . . 1 . Drone Launches . | . . . . . Drone Recoveries . | . . . . . Exploration | -11 -10 -9 -9 -8 ------------- Run | Yrd Mat Mat Min Mat Turns Passed 2235 | 1248 218 181 314 274 Spaces Moved 1276 | 410 220 184 268 194 Core 65 | 25 . . 1 39 Treads . | . . . . . Legs 18 | . . . 18 . Wheels 1193 | 385 220 184 249 155 Hover . | . . . . . Flight . | . . . . . Fastest Speed 50 | 50 80 80 95 95 Average Speed 92 | 78 80 80 106 129 Slowest Speed 600 | 80 80 95 350 600 Overloaded Moves . | . . . . . Propulsion Burnouts . | . . . . . Robots Hopped . | . . . . . Cave-ins Triggered . | . . . . . Exploration Rate (%) 31 | 38 30 16 48 26 Regions Visited 4 Branch Regions 1 Pre-discovered Areas . | . . . . . Known Exits Taken . | . . . . . Unknown Exits Taken 4 | 1 1 1 1 . Scrap Searched 1 | . . . 1 . Spaces Dug . | . . . . . Terrain Destroyed 13 | . . . . 13 Melee . | . . . . . Projectile . | . . . . . AOE 13 | . . . . 13 Terrain Rammed . | . . . . . Walls Destroyed . | . . . . . Machines Disabled . | . . . . . Actions | -11 -10 -9 -9 -8 --------- Run | Yrd Mat Mat Min Mat Total 2285 | 1318 250 209 294 214 Wait 895 | 885 . 9 1 . Move 1272 | 409 219 183 267 194 Hop . | . . . . . Pick Up 21 | 5 6 5 3 2 Fast Attach 10 | 4 . 2 2 2 Attach 24 | 3 6 3 6 6 Detach 21 | 2 5 2 7 5 Swap . | . . . . . Drop 13 | . 5 1 5 2 Fire 29 | 10 9 4 3 3 Melee . | . . . . . Ram . | . . . . . Kick . | . . . . . Crush . | . . . . . Escape Stasis . | . . . . . Rewire . | . . . . . Trap . | . . . . . Miscellaneous . | . . . . . Route ------- -11/Scrapyard -10/Materials -9/Materials -9/Mines -8/Materials History --------- Turn | Location | Event 2 | -11/Scrapyard | Met Revision 17 145 | -11/Scrapyard | Discovered new exit (range 8) 1249 | -11/Scrapyard | Entered Materials 1250 | -10/Materials | Build established: Mutant 1455 | -10/Materials | Discovered new exit (range 16) 1467 | -10/Materials | Entered another Materials area 1467 | -9/Materials | Evolved 2 slots: Utility x2 1632 | -9/Materials | Discovered new exit (range 6) 1648 | -9/Materials | Entered Mines 1738 | -9/Mines | Met a Derelict bent on vengeance 1849 | -9/Mines | Learned Materials stockpile data 1864 | -9/Mines | Discovered new exit (range 7) 1918 | -9/Mines | Found a damaged Exp. Sensor Array with a note attached 1921 | -9/Mines | Found Prototype Device 1926 | -9/Mines | Identified Exp. Sensor Array 1962 | -9/Mines | Entered Materials 1962 | -8/Materials | Evolved 2 slots: Power x1, Weapon x1 2206 | -8/Materials | Core integrity fell below 50% 2213 | -8/Materials | Lost 11 parts (2p2n3u4w) 2216 | -8/Materials | Core integrity fell below 20% 2236 | -8/Materials | Destroyed by G-47 Trooper with Particle Gun Last Messages --------------- 02124_ Acquired VTOL Module. 02131_ Wheel destroyed. 02131_ Dropped Lgt. Treads. 02132_ Dropped Aluminum Leg. 02134_ Critical hit (Burn: +37). 02149_ Grenade Launcher destroyed. 02151_ R-06 Scavenger collects Aluminum Leg. 02152_ Structural Scanner destroyed. 02154_ Exp. Sensor Array destroyed. 02155_ R-06 Scavenger collects Lgt. Treads. 02159_ Lgt. Assault Rifle destroyed. 02163_ Ion Engine destroyed. 02165_ Wheel destroyed. 02165_ Lgt. Armor Plating destroyed. 02170_ Imp. EM Shotgun destroyed. 02171_ Processing Tank disabled. 02176_ Nuclear Core destroyed. 02182_ EM Pulse Gun destroyed. 02199_ K-01 Serf collects debris. [Achievement: First Step to Greatness] Map ----- +----------------------------------------------------+ | ????????????????? ????? ???????? | | ?????????????????? ??? ????????? | | ???????????????????? ?? ## | | ?????????????????????#+#/########## | | ?????????????????????# / | | ?????????????????????# # | | ?????????????????????# # """" | | ?????????????????????# / """"" | | ?????????????????????# # """"" | | ?????#########???????# # | | ?????# ######### ######## | | ?????# w ######## | | ?????#= | | ?????# ! | | ?????# | | ?????# [ ######## | | ?????# g ##########+########### | | ?????### Yg###??????? ????????? | | ???????# #?????????????? ??????? | | ???????# #??????????????? ??????? | | ???????# #??????????????????????? | | ??"????# #??????????????????????? | | ? """??# #??????????????????????? | | # """ # #??????????????????????? | | ??? ; #??????????????????????? | | ???????# @#??????????????????????? | | ???????# #??????????????????????? | | ??????# ??????????????????????? | | ??????# ??????????????????????? | | ????? T +?????????????????????? | | ????### #?????????????????????? | | ??????# #?????????????????????? | | ??????### ###?????????????????????? | | ????????# ????????????????????????? | | ????????# ????????????????????????? | | ????????# ????????????????????????? | | ????????# ????????????????????????? | | ????????# ????????????????????????? | | ????????? ????????????????????????? | | ????????? ????????????????????????? | | ??????????????????????????????????? | | ??????????????????????????????????? | | ??????????????????????????????????? | | ??????????????????????????????????? | | ??????????????????????????????????? | | ??????????????????????????????????? | | ??????????????????????????????????? | | ??????????????????????????????????? | | ??????????????????????????????????? | | ??????????????????????????????????? | +----------------------------------------------------+ Best States ------------- Heat Dissipation 31 Energy Generation 19 Energy Capacity 390 Matter Stores 370 Matter Capacity 500 Sight Range 16 Robot Scan Range 20 Terrain Scan Density 10 Armor Coverage 150 Evasion (%) 50 Item Schematics ----------------- None Robot Schematics ------------------ None Fabricated ------------ Nothing Alien Tech Used ----------------- None Achievements -------------- Crack Shot First Step to Greatness One Hack Too Far Challenges ------------ None Game ------ Seed NeutrinoCompactStripper Manual? 0 Play Time 01:15:42 Cumulative 1.8 hours Start 2024.05.27 @ 04:04:56 End 2024.05.27 @ 09:12:58 Sessions 5 Manual Loads 0 Difficulty Rogue Special Mode None Game No. 2 Rogue 2 Adventurer 0 Explorer 0 Win Type - Total 0 Types 0/0/0/0/0/0/0/0/0 Lore% 0 Gallery% 2 Achievement% 2 Wizard Run 0 Options --------- Layout 1 ASCII 0 Keyboard 1 Movement Numpad Keybinds 0 Fullscreen 0 Font 20/SmallcapsGlow Map View 50x35 Zoom Use 0% Tactical HUD 1 Map Filters NONE Filters NONE Steam 1 RUN: 2e8cde51-b17f-45ae-ba65-254cc2668c79